fUSD/lending_fUSD_20250724
["ID","MTS","AMOUNT","RATE_DAILY","PERIOD"]
[374492874,1753320649772,-400.0,0.00022464,2]
[374492875,1753320649782,-400.0,0.00022464,2]
[374492876,1753320649792,-240.0,0.00022464,2]
[374492877,1753320649801,-463.09585857,0.00022464,2]
[374492878,1753320649811,-480.0,0.00022464,2]
[374492879,1753320649821,-150.0,0.00022464,2]
[374492880,1753320649832,-2644.97203474,0.00022464,2]
[374492881,1753320649842,-150.0,0.00022464,2]
[374492882,1753320649852,-400.0,0.00022465,2]
[374492883,1753320649863,-400.0,0.00022465,2]
[374492884,1753320649873,-528.56341891,0.00022465,2]
[374492885,1753320649883,-400.0,0.00022465,2]
[374492886,1753320649892,-400.0,0.00022465,2]
[374492887,1753320649902,-295.27766312,0.00022465,2]
[374492888,1753320649911,-400.0,0.00022465,2]
[374492889,1753320649921,-1087.27,0.00022465,2]
[374492890,1753320649930,-400.0,0.00022465,2]
[374492891,1753320649940,-400.0,0.00022465,2]
[374492892,1753320649950,-400.0,0.00022465,2]
[374492893,1753320649959,-400.0,0.00022465,2]
[374492894,1753320649969,-425.73,0.00022465,2]
[374492895,1753320649979,-400.0,0.00022465,2]
[374492896,1753320649988,-400.0,0.00022465,2]
[374492897,1753320649998,-413.29,0.00022465,2]
[374492898,1753320650007,-445.4,0.00022465,2]
[374492899,1753320650017,-564.74,0.00022465,2]
[374492900,1753320650027,-400.0,0.00022465,2]
[374492901,1753320650038,-400.0,0.00022465,2]
[374492902,1753320650049,-529.26,0.00022465,2]
[374492903,1753320650059,-400.0,0.00022465,2]
[374492904,1753320650069,-400.0,0.00022465,2]
[374492905,1753320650079,-400.0,0.00022465,2]
[374492906,1753320650089,-400.0,0.00022465,2]
[374492907,1753320650098,-200.0,0.00022465,2]
[374492908,1753320650109,-400.0,0.00022465,2]
[374492909,1753320650119,-418.37,0.00022465,2]
[374492910,1753320650129,-400.0,0.00022465,2]
[374492911,1753320650138,-508.18,0.00022465,2]
[374492912,1753320650148,-652.26,0.00022465,2]
[374492913,1753320650157,-1606.69,0.00022465,2]
[374492914,1753320650167,-652.41,0.00022465,2]
[374492915,1753320650178,-400.0,0.00022465,2]
[374492916,1753320650189,-400.0,0.00022465,2]
[374492917,1753320650199,-437.7,0.00022465,2]
[374492918,1753320650210,-566.32,0.00022465,2]
[374492919,1753320650220,-476.43,0.00022465,2]
[374492920,1753320650229,-578.19,0.00022465,2]
[374492921,1753320650239,-377.50906324,0.00022465,2]
[374492922,1753320650249,-400.0,0.00022465,2]
[374492923,1753320650258,-400.0,0.00022465,2]
[374492924,1753320650268,-400.0,0.00022465,2]
[374492925,1753320650278,-400.0,0.00022465,2]
[374492926,1753320650287,-427.13,0.00022465,2]
[374492927,1753320650297,-400.0,0.00022465,2]
[374492928,1753320650308,-1234.56,0.00022465,2]
[374492929,1753320650318,-400.0,0.00022465,2]
[374492930,1753320650329,-400.0,0.00022465,2]
[374492931,1753320650340,-362.64506793,0.00022465,2]
[374492932,1753320650350,-433.95,0.00022465,2]
[374492933,1753320650361,-400.0,0.00022465,2]
[374492934,1753320650370,-527.75,0.00022465,2]
[374492935,1753320650381,-400.0,0.00022465,2]
[374492936,1753320650391,-400.0,0.00022465,2]
[374492937,1753320650401,-400.0,0.00022465,2]
[374492938,1753320650412,-556.27,0.00022465,2]
[374492939,1753320650422,-400.0,0.00022465,2]
[374492940,1753320650433,-400.0,0.00022465,2]
[374492941,1753320650444,-1391.68,0.00022465,2]
[374492942,1753320650456,-458.15,0.00022465,2]
[374492943,1753320650466,-400.0,0.00022465,2]
[374492944,1753320650478,-400.0,0.00022465,2]
[374492945,1753320650488,-400.0,0.00022465,2]
[374492946,1753320650500,-400.0,0.00022465,2]
[374492947,1753320650511,-576.88,0.00022465,2]
[374492948,1753320650522,-400.0,0.00022465,2]
[374492949,1753320650534,-467.82,0.00022465,2]
[374492950,1753320650545,-400.0,0.00022465,2]
[374492951,1753320650557,-400.0,0.00022465,2]
[374492952,1753320650568,-400.0,0.00022465,2]
[374492953,1753320650579,-486.92,0.00022465,2]
[374492954,1753320650594,-400.0,0.00022465,2]
[374492955,1753320650607,-400.0,0.00022465,2]
[374492956,1753320650616,-400.0,0.00022465,2]
[374492957,1753320650857,-534.77,0.00022465,2]
[374492958,1753320650869,-641.71,0.00022465,2]
[374492959,1753320650879,-400.0,0.00022465,2]
[374492960,1753320650890,-400.0,0.00022465,2]
[374492961,1753320650899,-400.0,0.00022465,2]
[374492962,1753320650909,-400.0,0.00022465,2]
[374492963,1753320650919,-502.68,0.00022465,2]
[374492964,1753320650929,-213.53,0.00022465,2]
[374492965,1753320650939,-400.0,0.00022465,2]
[374492966,1753320650949,-400.0,0.00022465,2]
[374492967,1753320650959,-400.0,0.00022465,2]
[374492968,1753320650969,-300.0,0.00022465,2]
[374492969,1753320650979,-421.4,0.00022465,2]
[374492970,1753320650989,-400.0,0.00022465,2]
[374492971,1753320650999,-400.0,0.00022465,2]
[374492972,1753320651008,-653.08,0.00022465,2]
[374492973,1753320651018,-400.0,0.00022465,2]
[374492974,1753320651027,-473.79,0.00022465,2]
[374492975,1753320651037,-611.38,0.00022465,2]
[374492976,1753320651047,-400.0,0.00022465,2]
[374492977,1753320651056,-585.69,0.00022465,2]
[374492978,1753320651066,-400.0,0.00022465,2]
[374492979,1753320651076,-400.0,0.00022465,2]
[374492980,1753320651086,-733.57,0.00022465,2]
[374492981,1753320651096,-400.0,0.00022465,2]
[374492982,1753320651105,-1611.14,0.00022465,2]
[374492983,1753320651115,-400.0,0.00022465,2]
[374492984,1753320651125,-400.0,0.00022465,2]
[374492985,1753320651135,-432.73,0.00022465,2]
[374492986,1753320651145,-549.83,0.00022465,2]
[374492987,1753320651155,-497.55,0.00022465,2]
[374492988,1753320651165,-400.0,0.00022465,2]
[374492989,1753320651176,-546.2,0.00022465,2]
[374492990,1753320651186,-1992.16,0.00022465,2]
[374492991,1753320651196,-402.78,0.00022465,2]
[374492992,1753320651205,-468.2,0.00022465,2]
[374492993,1753320651215,-400.0,0.00022465,2]
[374492994,1753320651224,-556.75,0.00022465,2]
[374492995,1753320651234,-420.06,0.00022465,2]
[374492996,1753320651243,-400.0,0.00022465,2]
[374492997,1753320651254,-400.0,0.00022465,2]
[374492998,1753320651264,-400.0,0.00022465,2]
[374492999,1753320651274,-400.0,0.00022465,2]
[374493000,1753320651284,-400.0,0.00022465,2]
[374493001,1753320651294,-540.0,0.00022465,2]
[374493002,1753320651304,-3096.34,0.00022465,2]
[374493003,1753320651314,-400.0,0.00022465,2]
[374493004,1753320651324,-349.14652616,0.00022465,2]
[374493005,1753320651334,-446.82,0.00022465,2]
[374493006,1753320651344,-473.49,0.00022465,2]
[374493007,1753320651354,-400.0,0.00022465,2]
[374493008,1753320651364,-791.34,0.00022465,2]
[374493009,1753320651374,-435.0,0.00022465,2]
[374493010,1753320651384,-726.8,0.00022465,2]
[374493011,1753320651394,-400.0,0.00022465,2]
[374493012,1753320651403,-400.0,0.00022465,2]
[374493013,1753320651413,-717.98,0.00022465,2]
[374493014,1753320651423,-400.0,0.00022465,2]
[374493015,1753320651433,-4058.77,0.00022465,2]
[374493016,1753320651443,-400.0,0.00022465,2]
[374493017,1753320651453,-798.23,0.00022465,2]
[374493018,1753320651462,-621.33,0.00022465,2]
[374493019,1753320651472,-400.0,0.00022465,2]
[374493020,1753320651481,-435.28,0.00022465,2]
[374493021,1753320651491,-400.0,0.00022465,2]
[374493022,1753320651501,-400.0,0.00022465,2]
[374493023,1753320651510,-460.97,0.00022465,2]
[374493024,1753320651520,-480.0,0.00022465,2]
[374493025,1753320651530,-400.0,0.00022465,2]
[374493026,1753320651540,-400.0,0.00022465,2]
[374493027,1753320651549,-458.84,0.00022465,2]
[374493028,1753320651559,-400.0,0.00022465,2]
[374493029,1753320651569,-1172.64,0.00022465,2]
[374493030,1753320651578,-400.0,0.00022465,2]
[374493031,1753320651589,-2583.49,0.00022465,2]
[374493032,1753320651603,-400.0,0.00022465,2]
[374493033,1753320651613,-665.85,0.00022465,2]
[374493034,1753320651623,-400.0,0.00022465,2]
[374493035,1753320651633,-816.38,0.00022465,2]
[374493036,1753320651645,-400.0,0.00022465,2]
[374493037,1753320651654,-364.1592157,0.00022465,2]
[374493038,1753320651664,-455.67,0.00022465,2]
[374493039,1753320651674,-204.19691291,0.00022465,2]
[374493040,1753320651684,-603.78,0.00022465,2]
[374493041,1753320651693,-492.08844818,0.00022465,2]
[374493042,1753320651703,-400.0,0.00022465,2]
[374493043,1753320651712,-400.0,0.00022465,2]
[374493044,1753320651722,-400.0,0.00022465,2]
[374493045,1753320651731,-455.73,0.00022465,2]
[374493046,1753320651741,-845.59,0.00022465,2]
[374493047,1753320651750,-400.0,0.00022465,2]
[374493048,1753320651760,-400.0,0.00022465,2]
[374493049,1753320651769,-428.57,0.00022465,2]
[374493050,1753320651779,-400.0,0.00022465,2]
[374493051,1753320651788,-400.0,0.00022465,2]
[374493052,1753320651798,-400.0,0.00022465,2]
[374493053,1753320651807,-400.0,0.00022465,2]
[374493054,1753320651817,-510.38,0.00022465,2]
[374493055,1753320651827,-400.0,0.00022465,2]
[374493056,1753320651836,-901.93,0.00022465,2]
[374493057,1753320651845,-592.48,0.00022465,2]
[374493058,1753320651855,-809.51,0.00022465,2]
[374493059,1753320651867,-400.0,0.00022465,2]
[374493060,1753320651877,-400.0,0.00022465,2]
[374493061,1753320651887,-618.05,0.00022465,2]
[374493062,1753320651897,-400.0,0.00022465,2]
[374493063,1753320651906,-561.23,0.00022465,2]
[374493064,1753320651916,-444.27,0.00022465,2]
[374493065,1753320651925,-400.0,0.00022465,2]
[374493066,1753320651935,-795.33,0.00022465,2]
[374493067,1753320651944,-400.0,0.00022465,2]
[374493068,1753320651954,-3337.88,0.00022465,2]
[374493069,1753320651964,-251.68331799,0.00022465,2]
[374493070,1753320651974,-400.0,0.00022465,2]
[374493071,1753320651984,-692.39,0.00022465,2]
[374493072,1753320651994,-953.29,0.00022465,2]
[374493073,1753320652004,-400.0,0.00022465,2]
[374493074,1753320652014,-400.0,0.00022465,2]
[374493075,1753320652023,-400.0,0.00022465,2]
[374493076,1753320652033,-200.0,0.00022465,2]
[374493077,1753320652043,-400.0,0.00022465,2]
[374493078,1753320652052,-705.38,0.00022465,2]
[374493079,1753320652062,-431.41,0.00022465,2]
[374493080,1753320652072,-689.86,0.00022465,2]
[374493081,1753320652081,-400.0,0.00022465,2]
[374493082,1753320652091,-777.36,0.00022465,2]
[374493083,1753320652101,-400.0,0.00022465,2]
[374493084,1753320652111,-400.0,0.00022465,2]
[374493085,1753320652121,-422.23231188,0.00022465,2]
[374493086,1753320652131,-400.0,0.00022465,2]
[374493087,1753320652140,-433.2,0.00022465,2]
[374493088,1753320652150,-583.54,0.00022465,2]
[374493089,1753320652160,-428.06,0.00022465,2]
[374493090,1753320652169,-400.0,0.00022465,2]
[374493091,1753320652178,-1409.98,0.00022465,2]
[374493092,1753320652189,-400.0,0.00022465,2]
[374493093,1753320652198,-812.49,0.00022465,2]
[374493094,1753320652208,-615.63,0.00022465,2]
[374493095,1753320652218,-400.0,0.00022465,2]
[374493096,1753320652227,-459.76,0.00022465,2]
[374493097,1753320652237,-400.0,0.00022465,2]
[374493098,1753320652247,-497.24,0.00022465,2]
[374493099,1753320652257,-420.78,0.00022465,2]
[374493100,1753320652266,-1315.84,0.00022465,2]
[374493101,1753320652276,-400.0,0.00022465,2]
[374493102,1753320652285,-805.44,0.00022465,2]
[374493103,1753320652295,-400.0,0.00022465,2]
[374493104,1753320652305,-828.1,0.00022465,2]
[374493105,1753320652314,-400.0,0.00022465,2]
[374493106,1753320652325,-561.44,0.00022465,2]
[374493107,1753320652336,-400.0,0.00022465,2]
[374493108,1753320652346,-400.0,0.00022465,2]
[374493109,1753320652358,-400.0,0.00022465,2]
[374493110,1753320652368,-534.2398515,0.00022465,2]
[374493111,1753320652378,-400.0,0.00022465,2]
[374493112,1753320652388,-400.0,0.00022465,2]
[374493113,1753320652397,-515.15,0.00022465,2]
[374493114,1753320652407,-548.52,0.00022465,2]
[374493115,1753320652417,-443.96,0.00022465,2]
[374493116,1753320652427,-400.0,0.00022465,2]
[374493117,1753320652437,-469.19,0.00022465,2]
[374493118,1753320652447,-2717.0,0.00022465,2]
[374493119,1753320652456,-400.0,0.00022465,2]
[374493120,1753320652470,-400.0,0.00022465,2]
[374493121,1753320652480,-400.0,0.00022465,2]
[374493122,1753320652490,-400.0,0.00022465,2]
[374493123,1753320652499,-400.0,0.00022465,2]
[374493124,1753320652509,-737.45,0.00022465,2]
[374493125,1753320652519,-503.10420352,0.00022465,2]
[374493126,1753320652529,-150.0,0.00022465,2]
[374493127,1753320652538,-150.0,0.00022465,2]
[374493128,1753320652548,-1849.0,0.00022465,2]
[374493129,1753320652557,-150.0,0.00022465,2]
[374493130,1753320652566,-190.65200579,0.00022465,2]
[374493131,1753320652579,-468.573891,0.00022465,2]
[374493132,1753320652591,-336.782293,0.00022465,2]
[374493133,1753320652604,-157.804557,0.00022465,2]
[374493134,1753320652615,-168.391146,0.00022465,2]
[374493135,1753320652625,-500.0,0.00022465,2]
[374493136,1753320652634,-150.0,0.00022465,2]
[374493137,1753320652644,-150.0,0.00022465,2]
[374493138,1753320652654,-500.0,0.00022465,2]
[374493139,1753320652663,-150.0,0.00022465,2]
[374493140,1753320652674,-150.0,0.00022465,2]
[374493141,1753320652685,-250.0,0.00022465,2]
[374493142,1753320652695,-150.0,0.00022465,2]
[374493143,1753320652705,-150.0,0.00022465,2]
[374493144,1753320652714,-150.61572692,0.00022465,2]
[374493145,1753320652725,-150.0,0.00022465,2]
[374493146,1753320652734,-150.0,0.00022465,2]
[374493147,1753320652744,-151.0,0.00022466,2]
[374493148,1753320652753,-150.0,0.00022466,2]
[374493149,1753320652763,-150.0,0.00022466,2]
[374493150,1753320652773,-500.0,0.0002247,2]
[374493151,1753320652782,-500.0,0.0002247,2]
[374493152,1753320652792,-500.0,0.0002247,2]
[374493153,1753320652801,-150.0,0.00022471,2]
[374493154,1753320652811,-627.87193417,0.00022473,2]
[374493155,1753320652820,-500.0,0.00022473,2]
[374493156,1753320652830,-501.25235014,0.00022473,2]
[374493157,1753320652840,-500.0,0.00022473,2]
[374493158,1753320652851,-500.0,0.00022473,2]
[374493159,1753320652862,-500.0,0.00022473,2]
[374493160,1753320652872,-500.0,0.00022473,2]
[374493161,1753320652883,-500.0,0.00022473,2]
[374493162,1753320652892,-154.64573963,0.00022473,2]
[374493163,1753320652902,-500.0,0.00022473,2]
[374493164,1753320652912,-500.0,0.00022473,2]
[374493165,1753320652923,-500.0,0.00022473,2]
[374493166,1753320652933,-500.0,0.00022473,2]
[374493167,1753320652943,-500.0,0.00022473,2]
[374493168,1753320652954,-500.0,0.00022473,2]
[374493169,1753320652964,-501.18953041,0.00022473,2]
[374493170,1753320652974,-150.0,0.00022473,2]
[374493171,1753320652983,-300.0,0.00022478,2]
[374493172,1753320652993,-150.0,0.00022483,2]
[374493173,1753320653002,-150.0,0.00022485,2]
[374493174,1753320653013,-368.0014155,0.0002249,2]
[374493175,1753320653023,-152.1044603,0.0002249,2]
[374493176,1753320653033,-124264.600839,0.00022496,2]
[374493177,1753320653043,-4519.609005,0.00022496,2]
[374493178,1753320653054,-300.0,0.00022499,2]
[374493179,1753320653064,-151.0,0.00022499,2]
[374493180,1753320653075,-193.17874346,0.00022499,2]
[374493181,1753320653086,-205.8820769,0.00022499,2]
[374493182,1753320653096,-221.16541967,0.00022499,2]
[374493183,1753320653106,-478.96366169,0.00022499,2]
[374493184,1753320653116,-48430.54753261,0.000225,3]
[374493185,1753320653212,-4822.05000181,0.000225,3]
[374493186,1753320653224,-1050.05129986,0.000225,3]
[374493187,1753320653472,-1717.66043759,0.000225,3]
[374493188,1753320653698,-0.01187062,0.000225,3]
[374493189,1753320654688,437.0,0.00027397,120]
[374493190,1753320655244,-150.0,0.00022191,2]
[374493191,1753320655253,-107.48254551,0.000225,3]
[374493192,1753320655420,-1301.18406247,0.000225,3]
[374493193,1753320655743,-807.0,0.00022144,2]
[374493194,1753320655761,-2618.93214764,0.000225,3]
[374493195,1753320657440,-1195.187006,0.00022049,8]
[374493196,1753320657450,-2812.16248749,0.000225,3]
[374493197,1753320657464,-37467.02554643,0.000225,3]
[374493198,1753320657477,-200.0,0.000225,2]
[374493199,1753320657487,-151.0,0.000225,7]
[374493200,1753320657496,-92034.45610942,0.000225,3]
[374493201,1753320657507,-151.0,0.000225,7]
[374493202,1753320657518,-254.121,0.000225,2]
[374493203,1753320657528,-210.97252602,0.000225,3]
[374493204,1753320657539,-752.2358,0.000225,2]
[374493205,1753320657550,-226.44079573,0.000225,7]
[374493206,1753320657561,-477.10046099,0.000225,3]
[374493207,1753320657570,-3884.76929324,0.00022505,2]
[374493208,1753320657755,-350.03723001,0.00022505,2]
[374493209,1753320658075,-558.10814421,0.00022505,2]
[374493217,1753321070583,155.57,0.00013699,2]
[374493218,1753321077765,338.42708021,0.00023966,120]
[374493219,1753321167704,1540.34,0.00027396,120]
[374493220,1753321240687,2800.0,0.00027397,120]
[374493224,1753321415935,222.09,0.00026372,120]
[374493225,1753321498671,1000.0,0.00027397,120]
[374493253,1753321832505,-150.0,0.00018795,2]
[374493254,1753321832516,-287.78,0.00019178,2]
[374493255,1753321832525,-156.4,0.0002,2]
[374493256,1753321832535,-166.726013,0.00020521,2]
[374493257,1753321832544,-180.0,0.00020713,7]
[374493258,1753321832554,-185.52,0.00020714,2]
[374493259,1753321832564,-1525.62,0.00020715,2]
[374493260,1753321832574,-287.78,0.00020729,2]
[374493261,1753321832583,-981.98,0.00020753,2]
[374493262,1753321832592,-159.75,0.00020944,2]
[374493263,1753321832602,-155.57,0.00020951,2]
[374493264,1753321832611,-159.75,0.00020961,2]
[374493265,1753321832621,-159.75,0.00020979,2]
[374493266,1753321832631,-159.75,0.00020996,2]
[374493267,1753321832640,-159.75,0.00021014,2]
[374493268,1753321832650,-159.75,0.00021031,2]
[374493269,1753321832659,-159.75,0.00021049,2]
[374493270,1753321832668,-66.77009472,0.00021066,2]
[374493271,1753321832680,-92.97990528,0.00021066,2]
[374493272,1753321832690,-159.75,0.00021083,2]
[374493273,1753321832700,-164.98109477,0.00021096,2]
[374493274,1753321832711,-85.01890523,0.00021096,2]
[374493275,1753321832720,-222.09,0.00021098,2]
[374493276,1753321832729,-96.23639533,0.00021101,2]
[374493279,1753321832781,-63.51360467,0.00021101,2]
[374493282,1753321832791,-159.75,0.00021118,2]
[374493283,1753321832801,-197.67164597,0.00021124,2]
[374493303,1753321833293,-810.32835403,0.00021124,2]
[374493304,1753321833303,-3047.05,0.00021125,2]
[374493305,1753321833314,-159.75,0.00021136,2]
[374493306,1753321833324,-600.0,0.00021138,2]
[374493307,1753321833333,-1000.0,0.0002114,2]
[374493308,1753321833343,-210.08,0.0002114,2]
[374493309,1753321833352,-455.0,0.00021153,2]
[374493310,1753321833362,-159.75,0.00021153,2]
[374493311,1753321833373,-500.0,0.00021164,2]
[374493312,1753321833383,-18160.831672,0.00021178,2]
[374493313,1753321833392,-600.0,0.00021178,2]
[374493314,1753321833403,-239.84119403,0.00021178,2]
[374493315,1753321833413,-22217.41,0.00021191,2]
[374493316,1753321833424,-504.07,0.00021226,2]
[374493317,1753321833434,-3210.19,0.00021256,2]
[374493318,1753321833444,-666.0,0.00021364,3]
[374493319,1753321833454,-222.23,0.00021455,2]
[374493320,1753321833465,-266.45,0.00021576,2]
[374493321,1753321833476,-8214.19481883,0.00021726,2]
[374493322,1753321833586,-1323.86159214,0.00021726,2]
[374493331,1753321839226,-1163.1,0.00021726,2]
[374493332,1753321839238,-8131.62603289,0.00021726,2]
[374493333,1753321839247,-600.0,0.00021726,2]
[374493334,1753321839257,-432.84,0.00021817,2]
[374493335,1753321839268,-394.5993,0.00021817,2]
[374493336,1753321839277,-239.41250077,0.000219,6]
[374493337,1753321839287,-1326.77778345,0.00021918,2]
[374493338,1753321839318,-575.30635287,0.00021918,2]
[374493339,1753321839329,-675.54813812,0.00021918,2]
[374493348,1753321841041,-2422.36772556,0.00021918,2]
[374493349,1753321841063,-150.0,0.00021918,2]
[374493350,1753321841075,-150.0,0.00021918,2]
[374493351,1753321841084,-180.0,0.00022,2]
[374493352,1753321841094,-2004.39,0.00022,2]
[374493353,1753321841104,-837.0,0.00022,2]
[374493354,1753321841114,-165.0,0.00022,2]
[374493355,1753321841124,-1963.0,0.00022006,2]
[374493356,1753321841133,-1074.361901,0.00022054,8]
[374493357,1753321841143,-160.0,0.00022119,2]
[374493358,1753321841152,-210.97252602,0.00022119,2]
[374493359,1753321841162,-3354.0,0.00022121,2]
[374493360,1753321841172,-807.0,0.00022121,2]
[374493361,1753321841182,-953.0,0.00022121,2]
[374493362,1753321841192,-2018.0,0.00022121,2]
[374493363,1753321841201,-979.862,0.00022121,2]
[374493364,1753321841211,-1272.615,0.00022121,2]
[374493365,1753321841221,-563.0,0.00022121,2]
[374493366,1753321841230,-890.0,0.00022121,2]
[374493367,1753321841241,-1173.135,0.00022121,2]
[374493368,1753321841254,-596.0,0.00022121,2]
[374493369,1753321841265,-1404.852,0.00022121,2]
[374493370,1753321841276,-1688.0,0.00022121,2]
[374493371,1753321841286,-4129.0,0.00022121,2]
[374493372,1753321841306,-6055.0,0.00022121,2]
[374493373,1753321841316,-863.337,0.00022121,2]
[374493374,1753321841325,-21379.0,0.00022121,2]
[374493375,1753321841335,-1000.0,0.0002217,2]
[374493376,1753321841345,-1605.5363099,0.0002217,2]
[374493377,1753321841355,-242.51857172,0.00022174,2]
[374493378,1753321841366,-3769.60652543,0.00022191,2]
[374493379,1753321841376,-165.0,0.00022192,7]
[374493380,1753321841385,-2089.06787581,0.00022199,2]
[374493381,1753321841395,-19529.59539429,0.00022274,2]
[374493382,1753321841406,-600.0,0.00022274,2]
[374493383,1753321841416,-287.78,0.00022279,2]
[374493384,1753321841426,-947.0,0.000223,2]
[374493385,1753321841438,-774.0,0.000223,2]
[374493386,1753321841447,-239.0,0.000223,2]
[374493387,1753321841456,-604.0547,0.00022405,2]
[374493388,1753321841466,-617.5968,0.00022405,2]
[374493389,1753321841475,-1903.02376629,0.00022405,2]
[374493390,1753321841485,-2433.45830187,0.00022421,2]
[374493391,1753321841494,-1033.24,0.0002245,2]
[374493392,1753321841504,-150.0,0.00022465,2]
[374493393,1753321841514,-500.0,0.00022465,2]
[374493394,1753321841524,-150.0,0.00022465,2]
[374493395,1753321841533,-500.0,0.00022465,2]
[374493396,1753321841542,-152.4905787,0.00022466,2]
[374493397,1753321841552,-500.0,0.00022466,2]
[374493398,1753321841561,-150.0,0.00022466,2]
[374493399,1753321841571,-150.0,0.00022466,2]
[374493400,1753321841580,-150.0,0.00022466,2]
[374493401,1753321841590,-150.0,0.00022466,2]
[374493402,1753321841600,-150.0,0.00022466,2]
[374493403,1753321841609,-500.0,0.00022466,2]
[374493404,1753321841619,-150.0,0.00022466,2]
[374493405,1753321841628,-150.96298117,0.00022466,2]
[374493406,1753321841638,-150.0,0.00022466,2]
[374493407,1753321841647,-500.0,0.00022466,2]
[374493408,1753321841657,-500.0,0.00022466,2]
[374493409,1753321841666,-150.0,0.00022466,2]
[374493410,1753321841675,-500.0,0.00022466,2]
[374493411,1753321841687,-150.0,0.00022466,2]
[374493412,1753321841698,-151.10670198,0.00022466,2]
[374493413,1753321841707,-150.33767371,0.00022466,2]
[374493414,1753321841716,-150.83782721,0.00022466,2]
[374493415,1753321841726,-1000.0,0.0002247,2]
[374493416,1753321841735,-1000.0,0.0002247,2]
[374493417,1753321841744,-1000.0,0.0002247,2]
[374493418,1753321841753,-1000.0,0.0002247,2]
[374493419,1753321841763,-1000.0,0.0002247,2]
[374493420,1753321841772,-381.487,0.000225,2]
[374493421,1753321841782,-1128.8924,0.000225,2]
[374493422,1753321841791,-151.81878931,0.00022505,2]
[374493423,1753321841801,-258.13643007,0.00022505,2]
[374493424,1753321841811,-689.2081505,0.00022505,2]
[374493425,1753321841821,-3949.6265951,0.00022506,2]
[374493426,1753321841830,-177318.0766385,0.00022506,2]
[374493427,1753321841842,-16471.4581198,0.00022506,2]
[374493428,1753321841852,-940.0917069,0.00022506,2]
[374493429,1753321841863,-382.0857778,0.00022521,2]
[374493430,1753321841874,-636.8096297,0.00022521,2]
[374493431,1753321841884,-1903.02376613,0.00022531,2]
[374493432,1753321841895,-203.41202177,0.00022537,2]
[374493433,1753321841905,-248.71531821,0.00022547,2]
[374493434,1753321841915,-500.0,0.00022573,2]
[374493435,1753321841925,-506.63328423,0.00022573,2]
[374493436,1753321841936,-500.44032867,0.00022573,2]
[374493437,1753321841945,-500.0,0.00022573,2]
[374493438,1753321841955,-500.0,0.00022573,2]
[374493439,1753321841966,-500.98871794,0.00022573,2]
[374493440,1753321841977,-165.05878896,0.00022573,2]
[374493441,1753321841988,-500.0,0.00022573,2]
[374493442,1753321841998,-500.0,0.00022573,2]
[374493443,1753321842008,-500.0,0.00022573,2]
[374493444,1753321842018,-500.0,0.00022573,2]
[374493445,1753321842029,-500.0,0.00022573,2]
[374493446,1753321842041,-500.0,0.00022573,2]
[374493447,1753321842051,-500.0,0.00022573,2]
[374493448,1753321842061,-183.9103064,0.00022573,2]
[374493449,1753321842071,-505.53422036,0.00022573,2]